bitfinex/quotes_SOLUSD_20251207
["timestamp","ask_amount","ask_price","bid_price","bid_amount"]
[1765144505938,0.68,132.96,132.94,44.98047608]
[1765144506239,0.68,132.96,132.94,37.45830435]
[1765144506766,0.99999999,132.95,132.94,37.45830435]
[1765144506941,0.99999999,132.94,132.82,0.66]
[1765144507131,6.42367911,132.88,132.83,6.42367911]
[1765144507331,8.38,132.87,132.84,6.42367911]
[1765144507655,8.38,132.87,132.85,6.42367911]
[1765144507827,8.38,132.87,132.85,0.66]
[1765144508171,9.37999999,132.89,132.85,0.66]
[1765144508330,7.4236791,132.92,132.86,0.66]
[1765144508530,0.99999999,132.91,132.86,0.66]
[1765144508832,0.99999999,132.89,132.84,0.66]
[1765144509032,0.99999999,132.89,132.85,6.42367911]
[1765144509235,7.4236791,132.9,132.85,13.95043734]
[1765144509465,7.4236791,132.9,132.79,7.53068755]
[1765144509466,0.99999999,132.84,132.79,7.53068755]
[1765144509759,15.8036791,132.84,132.79,8.19068755]
[1765144510061,0.99999999,132.83,132.79,8.19068755]
[1765144510434,0.99999999,132.82,132.79,8.19068755]
[1765144510634,0.99999999,132.81,132.79,7.53068755]
[1765144510834,9.37999999,132.84,132.8,7.08367911]
[1765144511070,8.38,132.84,132.81,6.42367911]
[1765144511228,8.38,132.84,132.82,13.9526657]
[1765144511430,8.38,132.84,132.83,6.42367911]
[1765144511629,0.99999999,132.87,132.83,0.66]
[1765144511865,0.99999999,132.85,132.82,7.52898659]
[1765144512474,0.99999999,132.83,132.81,7.52945474]
[1765144512956,8.4,132.83,132.8,7.53006056]
[1765144513159,9.39999999,132.83,132.81,7.52945215]
[1765144513333,8.4,132.83,132.81,7.52945215]
[1765144513533,8.4,132.83,132.81,13.95313126]
[1765144513743,9.39999999,132.87,132.82,7.08367911]
[1765144514040,8.4,132.87,132.83,6.42367911]
[1765144514245,9.39999999,132.87,132.84,0.66]
[1765144514851,8.4,132.87,132.84,0.66]
[1765144515157,0.99999999,132.86,132.84,0.66]
[1765144515960,9.39999999,132.87,132.84,8.18733252]
[1765144516462,0.99999999,132.86,132.84,8.18733252]
[1765144516761,9.39999999,132.87,132.84,8.18733252]
[1765144517836,9.39999999,132.87,132.84,33.43064427]
[1765144518030,8.4,132.87,132.85,7.08367911]
[1765144518559,8.4,132.87,132.86,0.66]
[1765144518766,8.4,132.87,132.86,7.08367911]
[1765144519263,0.99999999,132.91,132.86,7.08367911]
[1765144519432,9.39999999,132.92,132.88,6.42367911]
[1765144519636,0.99999999,132.91,132.87,7.08367911]
[1765144519965,0.99999999,132.91,132.88,7.52558699]
[1765144520271,0.59,132.9,132.84,19.4783884]
[1765144520437,0.99999999,132.88,132.86,7.52661427]
[1765144520638,9.39999999,132.87,132.84,8.18741648]
[1765144520852,8.4,132.87,132.84,7.52741648]
[1765144521135,0.99999999,132.86,132.83,7.52825694]
[1765144521767,0.99999999,132.84,132.83,7.52825694]
[1765144521967,0.99999999,132.84,132.82,7.52898659]
[1765144523359,0.99999999,132.84,132.82,8.24898659]
[1765144523942,0.99999999,132.84,132.82,14.6726657]
[1765144524540,0.99999999,132.84,132.82,8.24898659]
[1765144524946,0.99999999,132.85,132.82,8.24898659]
[1765144525173,0.99999999,132.86,132.83,0.72]
[1765144525466,0.99999999,132.85,132.83,0.72]
[1765144525674,0.99999999,132.89,132.84,6.42367911]
[1765144525971,8.52433421,132.91,132.88,6.42367911]
[1765144526168,7.52433422,132.91,132.9,13.94813358]
[1765144526373,8.4,132.92,132.9,13.94813358]
[1765144526579,8.4,132.92,132.91,0.72]
[1765144527953,8.4,132.92,132.91,7.14367911]
[1765144528196,1.70999999,133.01,132.92,23.83218629]
[1765144528343,0.99999999,133.01,132.99,6.42367911]
[1765144528770,0.99999999,133.02,133.0,6.42367911]
[1765144529286,9.39999999,133.03,133.01,6.42367911]
[1765144529451,9.39999999,133.03,133.02,6.42367911]
[1765144529452,8.4,133.03,133.02,6.42367911]
[1765144529969,9.39999999,133.03,133.01,7.14367911]
[1765144530148,8.4,133.03,133.02,6.42367911]
[1765144530797,0.99999999,133.07,133.02,7.14367911]
[1765144530956,0.99999999,133.07,133.0,13.94232399]
[1765144530957,7.4236791,133.05,133.0,13.94232399]
[1765144531165,8.2249146,133.07,132.69,22.60382996]
[1765144531166,0.99999999,133.02,132.99,6.42367911]
[1765144531365,8.4,133.03,133.01,6.42367911]
[1765144531669,8.4,133.03,133.02,6.42367911]
[1765144531852,8.4,133.03,133.01,6.42367911]
[1765144532257,9.11,133.03,132.99,6.42367911]
[1765144532454,0.99999999,133.02,132.99,6.42367911]
[1765144532661,0.99999999,133.02,133.0,7.51876851]
[1765144533096,0.99999999,133.02,132.99,13.94291428]
[1765144533394,8.4,133.03,133.01,6.42367911]
[1765144533599,8.4,133.03,133.02,6.42367911]
[1765144534304,0.99999999,133.06,133.02,33.45551191]
[1765144534467,9.39999999,133.07,133.05,6.42367911]
[1765144534971,9.39999999,133.07,133.06,6.42367911]
[1765144535870,9.39999999,133.07,133.06,7.14367911]
[1765144536391,9.39999999,133.07,133.06,14.65908569]
[1765144537092,0.2,133.11,133.06,33.44760214]
[1765144537290,0.2,133.11,133.1,6.42367911]
[1765144537504,9.39999999,133.17,133.1,6.42367911]
[1765144537792,8.4,133.17,133.15,6.42367911]
[1765144537997,9.39999999,133.17,133.15,6.42367911]
[1765144538195,8.4,133.17,133.16,6.42367911]
[1765144538373,15.90965641,133.17,133.13,6.42367911]
[1765144538570,0.99999999,133.15,133.1,0.72]
[1765144538892,0.99999999,133.15,133.13,6.42367911]
[1765144539264,0.99999999,133.15,133.1,8.23301912]
[1765144539265,0.99999999,133.16,133.14,6.42367911]
[1765144539497,8.4,133.17,133.15,6.42367911]
[1765144539675,10.10999999,133.21,133.16,6.42367911]
[1765144539877,9.39999999,133.21,133.17,6.42367911]
[1765144540097,0.99999999,133.21,133.18,6.42367911]
[1765144540282,6.42367911,133.23,133.18,6.42367911]
[1765144540283,7.5063671,133.23,133.2,6.42367911]
[1765144540471,0.99999999,133.22,133.21,6.42367911]
[1765144540676,0.99999999,133.22,133.2,6.42367911]
[1765144540868,0.99999999,133.22,133.18,6.42367911]
[1765144541066,0.99999999,133.2,133.18,6.42367911]
[1765144541488,0.99999999,133.19,133.16,0.72]
[1765144541676,0.99999999,133.2,133.18,6.42367911]
[1765144541877,0.99999999,133.19,133.16,0.72]
[1765144542078,0.99999999,133.2,133.16,0.72]
[1765144542295,8.50803522,133.2,133.16,0.72]
[1765144542500,0.99999999,133.18,133.16,0.72]
[1765144542998,7.50803523,133.2,133.16,0.72]
[1765144543330,8.50803522,133.2,133.18,6.42367911]
[1765144543503,0.99999999,133.19,133.17,6.42367911]
[1765144543674,0.99999999,133.18,133.16,6.42367911]
[1765144543870,0.99999999,133.18,133.1,0.72]
[1765144543871,0.99999999,133.16,133.1,0.72]
[1765144544189,0.99999999,133.13,133.11,6.42367911]
[1765144544392,15.91102761,133.14,133.11,6.42367911]
[1765144544604,15.91102761,133.14,133.08,6.42367911]
[1765144544605,0.99999999,133.13,133.08,6.42367911]
[1765144544774,0.99999999,133.13,133.07,6.42367911]
[1765144544775,0.99999999,133.08,133.07,6.42367911]
[1765144545299,10.10999999,133.1,133.07,6.42367911]
[1765144545521,9.39999999,133.1,133.08,6.42367911]
[1765144545869,0.99999999,133.09,133.08,6.42367911]
[1765144546073,0.99999999,133.09,133.07,6.42367911]
[1765144546293,0.99999999,133.12,133.08,6.42367911]
[1765144546497,8.4,133.11,133.09,6.42367911]
[1765144546996,8.4,133.11,133.1,6.42367911]
[1765144547197,8.4,133.11,133.09,6.42367911]
[1765144547384,9.39999999,133.11,133.09,6.42367911]
[1765144547570,8.4,133.11,133.09,6.42367911]
[1765144547778,0.99999999,133.11,133.1,6.42367911]
[1765144548379,16.91162698,133.13,133.1,6.42367911]
[1765144548903,0.99999999,133.11,133.09,7.14367911]
[1765144549096,0.99999999,133.11,133.09,6.42367911]
[1765144549409,1.70999999,133.11,133.08,6.42367911]
[1765144549784,1.70999999,133.11,133.07,6.42367911]
[1765144550186,0.99999999,133.14,133.09,6.42367911]
[1765144550396,7.51201923,133.12,133.08,0.72]
[1765144550709,0.99999999,133.1,133.08,7.14367911]
[1765144550877,0.99999999,133.1,133.06,13.93879602]
[1765144551078,0.99999999,133.1,133.08,6.42367911]
[1765144551313,0.99999999,133.1,133.07,7.14367911]
[1765144551806,8.4,133.09,133.05,13.9395726]
[1765144551974,9.39999999,133.09,133.07,6.42367911]
[1765144552307,9.39999999,133.09,133.07,7.51481409]
[1765144552502,9.39999999,133.09,133.06,0.72]
[1765144552685,16.91382609,133.09,133.05,6.42367911]
[1765144553002,0.99999999,133.08,133.06,0.72]
[1765144553204,0.99999999,133.08,133.06,7.14367911]
[1765144554495,0.99999999,133.08,133.06,0.72]
[1765144554697,1.68999999,133.08,133.04,13.94021549]
[1765144555002,1.68999999,133.08,133.04,7.14367911]
[1765144555203,1.68999999,133.08,133.04,14.65977107]
[1765144555401,1.68999999,133.08,133.05,7.51592869]
[1765144555905,0.69,133.08,133.05,13.9396078]
[1765144556080,0.69,133.08,133.05,7.51592869]
[1765144556277,1.68999999,133.08,133.05,7.51592869]
[1765144556482,0.99999999,133.06,133.03,6.42367911]
[1765144556682,0.99999999,133.07,133.04,6.42367911]
[1765144556898,0.99999999,133.07,133.04,14.64999081]
[1765144557098,0.69,133.08,133.04,14.64999081]
[1765144557099,0.99999999,133.08,133.05,7.13367911]
[1765144557290,8.4,133.09,133.05,7.13367911]
[1765144557493,0.99999999,133.08,133.05,7.13367911]
[1765144558292,8.4,133.09,133.06,7.13367911]
[1765144558502,8.4,133.09,133.06,14.64867237]
[1765144559797,9.39999999,133.09,133.06,14.64867237]
[1765144560098,0.99999999,133.07,133.04,6.42367911]
[1765144560410,0.99999999,133.07,133.06,13.93908569]
[1765144560606,15.91335195,133.1,133.06,13.93908569]
[1765144560607,0.99999999,133.08,133.06,13.93908569]
[1765144560803,8.4,133.1,133.07,7.13367911]
[1765144561016,9.39999999,133.1,133.08,6.42367911]
[1765144561311,9.39999999,133.1,133.08,7.13367911]
[1765144561513,0.99999999,133.09,133.07,6.42367911]
[1765144561696,0.99999999,133.05,133.02,7.51766651]
[1765144561898,0.99999999,133.03,133.01,7.51814929]
[1765144562201,0.99999999,133.04,133.01,7.51814929]
[1765144562531,0.99999999,133.03,133.0,7.51866369]
[1765144562712,0.99999999,133.02,133.0,7.51866369]
[1765144563216,0.99999999,133.02,133.01,7.51823171]
[1765144563598,0.99999999,133.03,133.01,7.51823171]
[1765144563913,0.99999999,133.02,133.0,18.15744011]
[1765144565186,0.99999999,133.02,133.0,7.51862067]
[1765144565389,0.99999999,133.02,132.99,9.92881944]
[1765144565390,0.99999999,133.0,132.98,9.92881944]
[1765144565704,0.99999999,133.0,132.98,17.44832603]
[1765144565890,0.99999999,133.0,132.98,7.51950659]
[1765144566094,0.99999999,132.99,132.98,7.51950659]
[1765144566596,9.39999999,133.01,132.98,17.44832603]
[1765144566800,0.99999999,133.0,132.98,17.44832603]
[1765144567004,0.99999999,133.0,132.98,7.51950659]
[1765144567199,0.99999999,132.98,132.95,9.92881944]
[1765144567390,0.99999999,132.97,132.94,7.52199354]
[1765144567586,1.68999999,132.97,132.94,7.52199354]
[1765144567817,0.99999999,132.95,132.92,17.55160008]
[1765144567993,0.99999999,132.95,132.92,7.62278064]
[1765144568200,0.99999999,132.93,132.92,0.1]
[1765144568397,9.39999999,132.93,132.92,0.1]
[1765144568609,20.01881943,132.93,132.92,0.1]
[1765144568808,0.99999999,132.88,132.87,7.52599693]
[1765144569190,1.68999999,132.88,132.85,17.45554523]
[1765144569391,1.68999999,132.88,132.85,7.52672579]
[1765144569392,0.99999999,132.87,132.85,7.52672579]
[1765144570007,0.99999999,132.87,132.85,17.45554523]
[1765144570224,0.99999999,132.88,132.85,17.45554523]
[1765144570405,0.99999999,132.87,132.85,17.45554523]
[1765144570613,0.99999999,132.87,132.84,0.1]
[1765144570614,1.68999999,132.87,132.84,0.1]
[1765144570821,0.69,132.86,132.84,0.1]
[1765144571125,0.99999999,132.85,132.84,0.1]
[1765144571337,9.39999999,132.85,132.84,0.1]
[1765144572516,10.08999999,132.85,132.84,0.1]
[1765144573026,9.39999999,132.85,132.84,0.1]
[1765144573234,0.99999999,132.85,132.84,0.1]
[1765144573601,1.68999999,132.85,132.84,0.1]
[1765144573812,0.99999999,132.85,132.84,0.1]
[1765144574010,11.61881943,132.85,132.84,0.1]
[1765144574208,0.99999999,132.8,132.79,7.53057573]
[1765144574505,0.99999999,132.8,132.77,9.92881944]
[1765144574506,0.99999999,132.78,132.77,7.53138052]
[1765144575222,0.99999999,132.79,132.78,7.5312547]
[1765144575422,0.99999999,132.79,132.73,3.50862099]
[1765144575423,0.99999999,132.77,132.74,36.29610694]
[1765144575728,0.99999999,132.77,132.75,9.92881944]
[1765144575932,0.99999999,132.78,132.76,0.71]
[1765144576098,0.99999999,132.77,132.75,9.92881944]
[1765144576427,0.99999999,132.75,132.73,11.0425714]
[1765144576630,0.99999999,132.74,132.73,11.0425714]
[1765144576924,0.99999999,132.74,132.73,3.50862099]
[1765144577135,1.68999999,132.74,132.73,3.50862099]
[1765144577637,8.4,132.77,132.73,21.68153219]
[1765144577807,8.4,132.77,132.75,9.92881944]
[1765144578301,0.99999999,132.81,132.76,10.63881944]
[1765144578504,1.68999999,132.8,132.77,9.92881944]
[1765144578926,0.99999999,132.78,132.77,9.92881944]
[1765144579127,0.99999999,132.8,132.78,0.71]
[1765144579311,8.42,132.81,132.79,9.92881944]
[1765144579515,8.42,132.81,132.8,17.45893992]
[1765144579724,0.99999999,132.82,132.8,15.95893992]
[1765144580121,0.99999999,132.81,132.8,6.03012048]
[1765144580329,0.99999999,132.81,132.79,17.4594174]
[1765144580523,0.99999999,132.84,132.8,10.63881944]
[1765144580709,8.42,132.85,132.83,9.92881944]
[1765144581327,0.99999999,132.82,132.8,9.92881944]
[1765144581528,0.99999999,132.8,132.79,28.75553831]
[1765144581826,0.99999999,132.8,132.78,17.46007414]
[1765144582132,0.99999999,132.79,132.78,17.46007414]
[1765144582335,9.41999999,132.8,132.78,17.46007414]
[1765144582831,8.42,132.8,132.78,17.46007414]
[1765144583038,8.42,132.8,132.79,10.63881944]
[1765144583332,0.7,132.84,132.79,10.63881944]
[1765144583333,8.42,132.84,132.79,10.63881944]
[1765144583545,9.41999999,132.84,132.83,17.45723922]
[1765144584613,9.41999999,132.84,132.83,9.92881944]
[1765144584814,9.41999999,132.84,132.82,17.45768482]
[1765144585014,0.99999999,132.84,132.83,17.45723922]
[1765144585314,0.99999999,132.84,132.76,25.87204784]
[1765144585315,0.99999999,132.82,132.8,17.45851358]
[1765144585536,0.99999999,132.81,132.79,7.53055831]
[1765144585728,8.22857235,132.83,132.78,9.92881944]
[1765144585729,9.41999999,132.8,132.78,17.45999255]
[1765144586219,0.99999999,132.79,132.78,17.45999255]
[1765144586446,9.41999999,132.8,132.78,17.45999255]
[1765144586641,0.99999999,132.79,132.78,9.92881944]
[1765144586936,8.42,132.8,132.78,17.45996199]
[1765144587126,8.42,132.8,132.79,9.92881944]
[1765144587438,0.99999999,132.84,132.79,10.63881944]
[1765144587628,9.41999999,132.84,132.82,9.92881944]
[1765144587836,9.41999999,132.84,132.83,9.92881944]
[1765144588140,0.99999999,132.83,132.82,9.92881944]
[1765144588545,0.99999999,132.82,132.81,17.45837293]
[1765144588722,0.99999999,132.81,132.8,7.53012048]
[1765144588926,0.99999999,132.81,132.8,17.45893992]
[1765144589730,1.69999999,132.84,132.8,18.16893992]
[1765144589939,0.99999999,132.82,132.81,9.92881944]
[1765144590445,0.99999999,132.81,132.79,9.92881944]
[1765144590622,0.99999999,132.81,132.78,9.92881944]
[1765144590822,0.99999999,132.79,132.78,9.92881944]
[1765144591235,0.99999999,132.79,132.78,17.45995401]
[1765144593656,0.99999999,132.79,132.78,9.92881944]
[1765144593833,0.99999999,132.77,132.74,26.36598683]
[1765144594036,0.99999999,132.77,132.76,9.92881944]
[1765144594233,0.99999999,132.76,132.74,7.53352418]
[1765144594543,0.99999999,132.76,132.74,17.46234362]
[1765144595247,0.99999999,132.76,132.75,9.92881944]
[1765144595437,1.69999999,132.77,132.74,17.46234362]
[1765144595644,0.99999999,132.75,132.73,11.04257309]
[1765144595830,0.99999999,132.74,132.73,11.04257309]
[1765144596030,0.99999999,132.74,132.73,3.50862099]
[1765144596248,1.69999999,132.74,132.73,3.50862099]
[1765144597159,10.11999999,132.74,132.73,3.50862099]
[1765144597958,10.61999999,132.74,132.73,3.50862099]
[1765144598249,10.61999999,132.74,132.73,11.04271275]
[1765144598469,10.61999999,132.74,132.73,3.50862099]
[1765144599031,9.91999999,132.74,132.73,11.04271275]
[1765144599269,9.91999999,132.74,132.73,20.97153219]
[1765144599959,0.5,132.74,132.73,21.68153219]
[1765144600262,0.5,132.74,132.73,3.50862099]
[1765144600263,1.69999999,132.74,132.73,3.50862099]
[1765144602359,19.16234361,132.74,132.73,3.50862099]
[1765144602736,10.11999999,132.74,132.73,3.50862099]
[1765144603459,10.11999999,132.74,132.73,11.04271275]
[1765144603754,10.11999999,132.74,132.73,3.50862099]
[1765144604337,9.41999999,132.74,132.73,11.04271275]
[1765144604734,9.41999999,132.74,132.73,3.50862099]
[1765144605345,10.11999999,132.74,132.73,3.50862099]
[1765144606847,0.99999999,132.75,132.73,21.68153219]
[1765144607052,0.99999999,132.75,132.73,11.75271275]
[1765144607254,0.99999999,132.75,132.74,9.92881944]
[1765144607457,0.99999999,132.75,132.73,39.8067616]
[1765144607661,0.99999999,132.75,132.73,40.5167616]
[1765144607862,0.99999999,132.75,132.74,9.92881944]
[1765144608366,1.69999999,132.74,132.73,3.50862099]
[1765144609046,0.99999999,132.74,132.73,3.50862099]
[1765144609365,1.69999999,132.74,132.73,3.50862099]
[1765144609739,34.20881943,132.74,132.66,0.1]
[1765144610067,0.99999999,132.59,132.57,0.71]
[1765144610270,8.46,132.59,132.57,8.25296797]
[1765144610449,8.46,132.59,132.51,37.73291058]
[1765144610450,0.99999999,132.58,132.55,0.71]
[1765144610649,8.46,132.59,132.57,7.54318473]
[1765144610968,9.45999999,132.59,132.57,8.25318473]
[1765144611339,9.45999999,132.59,132.57,7.54318473]
[1765144611544,9.45999999,132.59,132.57,8.25318473]
[1765144611740,9.45999999,132.59,132.57,7.04318473]
[1765144612044,0.99999999,132.58,132.56,7.5435793]
[1765144612263,5.77028526,132.58,132.5,26.41509433]
[1765144612458,0.99999999,132.55,132.53,0.71]
[1765144612641,9.47999999,132.55,132.53,0.71]
[1765144612846,0.99999999,132.54,132.53,0.71]
[1765144613064,8.48,132.55,132.53,10.63881944]
[1765144613268,8.48,132.55,132.54,9.92881944]
[1765144613462,9.47999999,132.55,132.54,10.63881944]
[1765144613659,0.99999999,132.58,132.54,19.44876436]
[1765144613862,8.48,132.59,132.57,9.92881944]
[1765144614063,8.48,132.59,132.58,0.71]
[1765144614374,8.48,132.59,132.58,8.25261577]
[1765144614569,9.47999999,132.59,132.58,7.54261577]
[1765144614871,9.47999999,132.59,132.58,18.18143521]
[1765144615247,8.48,132.59,132.58,18.18143521]
[1765144615445,0.99999999,132.61,132.58,18.18143521]
[1765144615656,9.47999999,132.6,132.59,10.63881944]
[1765144615880,0.99999999,132.61,132.59,10.63881944]
[1765144616080,24.788864,132.66,132.59,10.63881944]
[1765144616081,4.76543972,132.65,132.6,9.51994492]
[1765144616288,14.24622393,132.66,132.63,17.46859173]
[1765144616467,14.24622393,132.66,132.61,1.46409094]
[1765144616468,0.99999999,132.64,132.62,9.92881944]
[1765144616668,9.47999999,132.66,132.63,9.92881944]
[1765144616966,0.99999999,132.64,132.62,7.54031495]
[1765144617274,0.99999999,132.62,132.61,8.25079941]
[1765144617889,0.99999999,132.62,132.61,18.17961885]
[1765144618062,0.99999999,132.62,132.61,8.25079941]
[1765144618258,0.99999999,132.62,132.61,9.92881944]
[1765144618583,0.99999999,132.6,132.58,17.47130736]
[1765144618749,0.99999999,132.6,132.58,18.18130736]
[1765144618952,0.99999999,132.59,132.58,18.18130736]
[1765144619187,0.99999999,132.59,132.58,8.25248792]
[1765144619353,0.99999999,132.59,132.58,18.18130736]
[1765144620778,0.99999999,132.64,132.59,8.80994492]
[1765144620949,9.92881944,132.69,132.59,9.51994492]
[1765144620950,0.99999999,132.63,132.59,9.51994492]
[1765144621147,8.48,132.65,132.6,0.71]
[1765144621148,0.99999999,132.61,132.6,0.71]
[1765144621968,0.99999999,132.59,132.58,7.54248792]
[1765144622172,0.99999999,132.59,132.58,18.18130736]
[1765144622559,0.99999999,132.59,132.58,8.25248792]
[1765144622767,0.99999999,132.59,132.58,18.18130736]
[1765144623471,0.99999999,132.6,132.58,18.18130736]
[1765144623678,0.99999999,132.59,132.58,8.25248792]
[1765144624189,0.27999999,132.61,132.58,8.25248792]
[1765144624403,0.27999999,132.59,132.57,8.80994492]
[1765144624699,0.27999999,132.61,132.59,0.71]
[1765144624990,0.27999999,132.63,132.6,6.45115394]
[1765144625202,8.5,132.64,132.59,0.71]
[1765144625203,0.27999999,132.62,132.59,0.71]
[1765144625564,0.27999999,132.63,132.59,0.71]
[1765144625935,0.27999999,132.67,132.6,8.80994492]
[1765144626095,44.44713199,132.75,132.6,9.56409273]
[1765144626096,0.27999999,132.68,132.6,9.56409273]
[1765144626254,0.27999999,132.7,132.68,7.53693096]
[1765144626460,0.27999999,132.7,132.69,6.45115394]
[1765144626769,0.27999999,132.7,132.63,8.24977229]
[1765144626770,0.27999999,132.66,132.63,8.24977229]
[1765144626970,0.27999999,132.66,132.65,6.45115394]
[1765144627177,0.27999999,132.67,132.65,6.45115394]
[1765144627486,0.27999999,132.67,132.66,6.45115394]
[1765144628364,0.27999999,132.67,132.66,13.98922117]
[1765144629657,0.27999999,132.67,132.66,14.69922117]
[1765144629860,36.91356411,132.75,132.66,14.69922117]
[1765144629861,0.27999999,132.68,132.66,14.69922117]
[1765144630083,0.27999999,132.68,132.66,6.45115394]
[1765144630261,0.27999999,132.67,132.66,6.45115394]
[1765144631188,0.27999999,132.65,132.64,7.53906732]
[1765144631482,0.27999999,132.65,132.64,8.24906732]
[1765144631685,0.27999999,132.65,132.64,7.53906732]
[1765144631988,0.27999999,132.65,132.64,8.24906732]
[1765144632287,0.27999999,132.67,132.64,33.54823091]
[1765144632476,0.27999999,132.66,132.64,27.09707697]
[1765144632675,0.27999999,132.66,132.65,6.45115394]
[1765144632988,0.27999999,132.67,132.65,7.16115394]
[1765144633289,0.27999999,132.67,132.66,6.45115394]
[1765144634871,0.27999999,132.67,132.66,13.98922117]
[1765144635270,0.27999999,132.67,132.66,14.69922117]
[1765144635788,0.27999999,132.68,132.66,14.69922117]
[1765144635984,6.45115394,132.74,132.67,7.16115394]
[1765144635985,0.27999999,132.7,132.67,7.16115394]
[1765144636298,0.27999999,132.71,132.69,6.45115394]
[1765144636479,0.27999999,132.71,132.7,6.45115394]
[1765144636992,0.27999999,132.71,132.7,13.98694896]
[1765144637670,0.27999999,132.73,132.7,13.98694896]
[1765144637865,0.27999999,132.71,132.7,7.53579502]
[1765144638297,0.27999999,132.7,132.68,7.53644641]
[1765144638489,0.27999999,132.69,132.68,7.53644641]
[1765144638663,0.27999999,132.71,132.68,27.08877381]
[1765144638864,0.27999999,132.72,132.7,6.45115394]
[1765144639067,0.27999999,132.71,132.69,0.71]
[1765144639363,0.27999999,132.7,132.69,0.71]
[1765144639563,0.27999999,132.71,132.69,0.71]
[1765144640209,0.27999999,132.71,132.7,6.45115394]
[1765144641094,0.27999999,132.71,132.7,13.98694896]
[1765144641789,0.27999999,132.72,132.7,33.51643652]
[1765144641999,0.27999999,132.72,132.71,7.14115394]
[1765144642302,0.27999999,132.72,132.71,6.45115394]
[1765144642664,0.27999999,132.71,132.7,7.53579502]
[1765144643302,0.27999999,132.71,132.68,26.37918456]
[1765144643482,0.27999999,132.7,132.68,27.06918456]
[1765144643685,0.04199999,132.7,132.68,27.06918456]
[1765144643988,2.00399999,132.75,132.69,6.45115394]
[1765144644186,1.41749999,132.75,132.71,6.45115394]
[1765144644484,8.46,132.74,132.71,6.45115394]
[1765144644710,13.52023194,132.76,132.71,6.45115394]
[1765144646002,0.53,132.75,132.71,6.45115394]
[1765144646506,0.53,132.75,132.7,13.98681637]
[1765144647525,0.53,132.75,132.66,7.14115394]
[1765144647526,6.45115394,132.73,132.67,7.53749905]
[1765144647689,6.45115394,132.73,132.68,6.45115394]
[1765144647891,0.53,132.73,132.68,6.45115394]
[1765144648092,0.53,132.72,132.68,6.45115394]
[1765144648700,0.53,132.72,132.68,13.98773193]
[1765144649215,6.98115394,132.72,132.67,6.45115394]
[1765144649711,0.53,132.71,132.67,6.45115394]
[1765144650515,13.9852952,132.73,132.68,6.45115394]
[1765144650683,13.9852952,132.73,132.66,7.53784336]
[1765144650684,14.5152952,132.73,132.66,7.53784336]
[1765144650881,14.5152952,132.73,132.68,6.45115394]
[1765144651101,0.53,132.72,132.68,6.45115394]
[1765144651484,0.53,132.72,132.67,6.45115394]
[1765144651992,8.46,132.71,132.67,6.45115394]
[1765144652301,8.46,132.71,132.68,6.45115394]
[1765144652698,7.96,132.71,132.68,6.45115394]
[1765144653392,7.96,132.71,132.69,6.45115394]
[1765144654109,7.96,132.71,132.7,6.45115394]
[1765144654490,4.81374416,132.74,132.7,6.45115394]
[1765144654705,6.45115394,132.77,132.72,13.9857552]
[1765144654905,20.2548981,132.77,132.72,6.45115394]
[1765144655209,0.53,132.76,132.72,6.45115394]
[1765144655951,0.53,132.76,132.72,13.98545822]
[1765144657194,5.34949903,132.76,132.72,6.45115394]
[1765144657814,5.34949903,132.76,132.72,13.98579395]
[1765144657999,8.46,132.77,132.73,6.45115394]
[1765144658202,13.80858804,132.77,132.73,6.45115394]
[1765144658401,6.98115394,132.8,132.75,6.45115394]
[1765144658715,8.44,132.78,132.75,6.45115394]
[1765144659026,8.44,132.78,132.76,6.45115394]
[1765144659326,8.44,132.78,132.75,27.05529942]
[1765144659493,8.44,132.78,132.77,6.45115394]
[1765144660398,8.97,132.78,132.75,13.98406165]
[1765144660615,0.53,132.77,132.75,13.98406165]
[1765144661117,8.44,132.78,132.75,13.98406165]
[1765144661296,8.97,132.78,132.75,13.98406165]
[1765144661698,8.44,132.78,132.74,6.45115394]
[1765144661898,0.53,132.77,132.74,6.45115394]
[1765144662220,0.53,132.77,132.73,7.53409176]
[1765144662606,11.80457695,132.77,132.72,13.9858034]
[1765144663019,0.53,132.76,132.72,13.9858034]
[1765144663326,0.53,132.76,132.72,13.98581134]
[1765144663625,6.45115394,132.74,132.69,6.45115394]
[1765144663828,8.44,132.73,132.69,6.45115394]
[1765144664001,8.97,132.73,132.7,6.45115394]
[1765144665323,8.97,132.73,132.7,13.98691168]
[1765144665505,8.44,132.73,132.7,13.98691168]
[1765144666018,0.5,132.72,132.7,13.98691168]
[1765144666625,0.5,132.72,132.71,7.14115394]
[1765144667120,8.44,132.75,132.71,7.14115394]
[1765144667304,8.44,132.75,132.73,6.45115394]
[1765144667509,8.44,132.75,132.74,6.45115394]